fUST/lending_fUST_20250911
["ID","MTS","AMOUNT","RATE_DAILY","PERIOD"]
[384841765,1757585210370,218.63818734,0.00013553,2]
[384841772,1757585275830,1000.0,0.0002866,60]
[384841775,1757585343791,-300.0,0.00013697,2]
[384841776,1757585343813,-77.04068905,0.00013698,2]
[384841777,1757585343847,-285.508902,0.00013698,2]
[384841778,1757585343870,-91.53178705,0.00013698,2]
[384841779,1757585392668,500.0,0.00028655,60]
[384841780,1757585430240,164.0,0.00026308,120]
[384841835,1757585432344,-135.58034353,0.00013698,2]
[384841837,1757585432354,-480.0,0.00013698,2]
[384841839,1757585432364,-480.0,0.00013698,2]
[384841841,1757585432373,-480.0,0.00013698,2]
[384841843,1757585432382,-480.0,0.00013698,2]
[384841845,1757585432392,-480.0,0.00013698,2]
[384841847,1757585432401,-442.48643989,0.00013698,2]
[384841849,1757585432410,-480.0,0.00013698,2]
[384841850,1757585432419,-207.53156748,0.00013698,2]
[384841851,1757585432429,-480.0,0.00013698,2]
[384841852,1757585432438,-480.0,0.00013698,2]
[384841854,1757585432447,-480.0,0.00013698,2]
[384841856,1757585432456,-480.0,0.00013698,2]
[384841858,1757585432465,-480.0,0.00013698,2]
[384841859,1757585432475,-480.0,0.00013698,2]
[384841860,1757585432484,-480.0,0.00013698,2]
[384841861,1757585432493,-480.0,0.00013698,2]
[384841862,1757585432503,-480.0,0.00013698,2]
[384841863,1757585432513,-480.0,0.00013698,2]
[384841864,1757585432522,-480.0,0.00013698,2]
[384841865,1757585432532,-480.0,0.00013698,2]
[384841866,1757585432542,-480.0,0.00013698,2]
[384841867,1757585432551,-275.20034553,0.00013698,2]
[384841868,1757585432560,-480.0,0.00013698,2]
[384841869,1757585432570,-480.0,0.00013698,2]
[384841870,1757585432580,-369.60791477,0.00013698,2]
[384841871,1757585432590,-480.0,0.00013698,2]
[384841872,1757585432599,-480.0,0.00013698,2]
[384841873,1757585432608,-480.0,0.00013698,2]
[384841874,1757585432618,-480.0,0.00013698,2]
[384841875,1757585432628,-480.0,0.00013698,2]
[384841876,1757585432637,-610.17935082,0.00013698,2]
[384841877,1757585432651,-480.0,0.00013698,2]
[384841878,1757585432661,-529.38,0.00013698,2]
[384841879,1757585432670,-480.0,0.00013698,2]
[384841880,1757585432679,-480.0,0.00013698,2]
[384841881,1757585432690,-480.0,0.00013698,2]
[384841882,1757585432700,-613.9,0.00013698,2]
[384841883,1757585432710,-480.0,0.00013698,2]
[384841884,1757585432721,-480.0,0.00013698,2]
[384841885,1757585432730,-480.0,0.00013698,2]
[384841886,1757585432740,-480.0,0.00013698,2]
[384841887,1757585432749,-480.0,0.00013698,2]
[384841888,1757585432758,-480.0,0.00013698,2]
[384841889,1757585432767,-480.0,0.00013698,2]
[384841890,1757585432776,-480.0,0.00013698,2]
[384841891,1757585432785,-480.0,0.00013698,2]
[384841892,1757585432795,-480.0,0.00013698,2]
[384841893,1757585432805,-480.0,0.00013698,2]
[384841894,1757585432815,-480.0,0.00013698,2]
[384841895,1757585432824,-480.0,0.00013698,2]
[384841896,1757585432833,-480.0,0.00013698,2]
[384841897,1757585432842,-480.0,0.00013698,2]
[384841898,1757585432852,-480.0,0.00013698,2]
[384841899,1757585432861,-449.81,0.00013698,2]
[384841900,1757585432871,-480.0,0.00013698,2]
[384841901,1757585432880,-480.0,0.00013698,2]
[384841902,1757585432889,-480.0,0.00013698,2]
[384841903,1757585432899,-405.73,0.00013698,2]
[384841904,1757585432909,-480.0,0.00013698,2]
[384841905,1757585432919,-480.0,0.00013698,2]
[384841906,1757585432928,-480.0,0.00013698,2]
[384841907,1757585432937,-480.0,0.00013698,2]
[384841908,1757585432948,-480.0,0.00013698,2]
[384841909,1757585432957,-480.0,0.00013698,2]
[384841910,1757585432967,-478.36916472,0.00013698,2]
[384841911,1757585432976,-480.0,0.00013698,2]
[384841912,1757585432986,-480.0,0.00013698,2]
[384841913,1757585432995,-1974.73,0.00013698,2]
[384841914,1757585433005,-480.0,0.00013698,2]
[384841915,1757585433014,-488.81871379,0.00013698,2]
[384841916,1757585433024,-480.0,0.00013698,2]
[384841917,1757585433034,-488.46207944,0.00013698,2]
[384841918,1757585433043,-356.41113189,0.00013698,2]
[384841949,1757585438151,-500.0,0.00013697,2]
[384841951,1757585438160,-173.11612289,0.00013697,2]
[384841953,1757585438172,-326.88387711,0.00013697,2]
[384841955,1757585438182,-600.29029327,0.00013697,2]
[384841957,1757585438191,-599.71070673,0.00013697,2]
[384841959,1757585438200,-123.58886811,0.00013698,2]
[384841961,1757585438210,-223.37126305,0.00013698,2]
[384841963,1757585438221,-256.62873695,0.00013698,2]
[384841965,1757585438231,-269.84080786,0.00013698,2]
[384841969,1757585438263,-210.15919214,0.00013698,2]
[384841971,1757585438272,-480.0,0.00013698,2]
[384841973,1757585438281,-480.0,0.00013698,2]
[384841975,1757585438290,-480.0,0.00013698,2]
[384841977,1757585438299,-480.0,0.00013698,2]
[384841979,1757585438309,-480.0,0.00013698,2]
[384841981,1757585438318,-480.0,0.00013698,2]
[384841983,1757585438328,-480.0,0.00013698,2]
[384841985,1757585438337,-480.0,0.00013698,2]
[384841987,1757585438347,-480.0,0.00013698,2]
[384841989,1757585438356,-480.0,0.00013698,2]
[384841991,1757585438365,-480.0,0.00013698,2]
[384841993,1757585438374,-146.21857088,0.00013698,2]
[384842008,1757585440205,-643.65816928,0.00013598,2]
[384842009,1757585440214,-214.20343063,0.00013698,2]
[384842010,1757585440223,-480.0,0.00013698,2]
[384842011,1757585440232,-480.0,0.00013698,2]
[384842012,1757585440242,-480.0,0.00013698,2]
[384842013,1757585440251,-257.10660144,0.00013698,2]
[384842014,1757585440260,-481.74542209,0.00013698,2]
[384842015,1757585440268,-480.0,0.00013698,2]
[384842016,1757585440277,-480.0,0.00013698,2]
[384842017,1757585440286,-480.0,0.00013698,2]
[384842018,1757585440295,-485.12697769,0.00013698,2]
[384842019,1757585440304,-485.79393001,0.00013698,2]
[384842020,1757585440314,-480.0,0.00013698,2]
[384842021,1757585440323,-480.0,0.00013698,2]
[384842023,1757585440332,-480.0,0.00013698,2]
[384842025,1757585440342,-480.0,0.00013698,2]
[384842027,1757585440352,-480.0,0.00013698,2]
[384842029,1757585440361,-480.0,0.00013698,2]
[384842031,1757585440370,-625.99713881,0.00013698,2]
[384842033,1757585440379,-480.0,0.00013698,2]
[384842034,1757585440388,-480.0,0.00013698,2]
[384842036,1757585440397,-480.0,0.00013698,2]
[384842038,1757585440405,-480.0,0.00013698,2]
[384842039,1757585440415,-480.0,0.00013698,2]
[384842040,1757585440423,-482.28867914,0.00013698,2]
[384842041,1757585440433,-480.0,0.00013698,2]
[384842042,1757585440443,-484.92107897,0.00013698,2]
[384842043,1757585440452,-480.0,0.00013698,2]
[384842044,1757585440461,-480.0,0.00013698,2]
[384842045,1757585440470,-480.0,0.00013698,2]
[384842046,1757585440479,-483.70607168,0.00013698,2]
[384842047,1757585440488,-350.4520951,0.00013698,2]
[384842048,1757585440497,-480.0,0.00013698,2]
[384842049,1757585440507,-480.0,0.00013698,2]
[384842050,1757585440516,-480.0,0.00013698,2]
[384842051,1757585440524,-480.0,0.00013698,2]
[384842052,1757585440533,-480.0,0.00013698,2]
[384842053,1757585440542,-480.0,0.00013698,2]
[384842054,1757585440551,-480.0,0.00013698,2]
[384842055,1757585440561,-480.0,0.00013698,2]
[384842056,1757585440571,-480.0,0.00013698,2]
[384842057,1757585440580,-480.0,0.00013698,2]
[384842058,1757585440589,-480.0,0.00013698,2]
[384842059,1757585440598,-480.0,0.00013698,2]
[384842060,1757585440607,-480.0,0.00013698,2]
[384842061,1757585440616,-480.0,0.00013698,2]
[384842062,1757585440625,-449.00040517,0.00013698,2]
[384842081,1757585442955,-30.99959483,0.00013698,2]
[384842082,1757585442964,-480.0,0.00013698,2]
[384842083,1757585442973,-480.0,0.00013698,2]
[384842084,1757585442985,-480.0,0.00013698,2]
[384842085,1757585442994,-480.0,0.00013698,2]
[384842086,1757585443003,-480.0,0.00013698,2]
[384842087,1757585443012,-165.11394765,0.00013698,2]
[384842088,1757585443021,-480.0,0.00013698,2]
[384842089,1757585443030,-480.0,0.00013698,2]
[384842090,1757585443039,-480.0,0.00013698,2]
[384842091,1757585443049,-480.0,0.00013698,2]
[384842092,1757585443058,-480.0,0.00013698,2]
[384842093,1757585443067,-480.0,0.00013698,2]
[384842094,1757585443077,-480.0,0.00013698,2]
[384842095,1757585443086,-480.0,0.00013698,2]
[384842096,1757585443096,-484.21599717,0.00013698,2]
[384842097,1757585443105,-480.0,0.00013698,2]
[384842098,1757585443114,-480.0,0.00013698,2]
[384842099,1757585443124,-480.0,0.00013698,2]
[384842100,1757585443134,-500.0,0.00013698,2]
[384842101,1757585443143,-500.0,0.00013698,2]
[384842102,1757585443152,-480.0,0.00013698,2]
[384842103,1757585443162,-500.0,0.00013698,2]
[384842104,1757585443171,-302.01221425,0.00013698,2]
[384842105,1757585443180,-551.21201223,0.00013698,2]
[384842106,1757585443190,-485.34736645,0.00013698,2]
[384842107,1757585443199,-500.0,0.00013698,2]
[384842108,1757585443208,-921.4709327,0.00013699,2]
[384842109,1757585443217,-300.569075,0.00013699,2]
[384842110,1757585443226,-500.0,0.00013945,2]
[384842111,1757585443236,-480.0,0.00013971,2]
[384842112,1757585443245,-480.0,0.00013971,2]
[384842113,1757585443254,-519.79,0.00013971,2]
[384842114,1757585443263,-480.0,0.00013971,2]
[384842115,1757585443272,-480.0,0.00013971,2]
[384842116,1757585443281,-269.02,0.00013971,2]
[384842117,1757585443291,-141.5072095,0.00013971,2]
[384842118,1757585443383,-86.9546174,0.00013971,2]
[384842119,1757585443393,-281.48301448,0.00013972,2]
[384842121,1757585444078,-480.0,0.00013698,2]
[384842122,1757585444087,-70.74997078,0.00013698,2]
[384842153,1757585446236,-409.25002922,0.00013698,2]
[384842154,1757585446245,-480.0,0.00013698,2]
[384842155,1757585446254,-480.0,0.00013698,2]
[384842156,1757585446264,-480.0,0.00013698,2]
[384842157,1757585446273,-481.64264598,0.00013698,2]
[384842158,1757585446282,-480.0,0.00013971,2]
[384842159,1757585446291,-198.51698552,0.00013972,2]
[384842160,1757585446301,-480.0,0.00013972,2]
[384842161,1757585446309,-480.0,0.00013972,2]
[384842162,1757585446318,-606.85,0.00013972,2]
[384842163,1757585446327,-480.0,0.00013972,2]
[384842164,1757585446336,-480.0,0.00013972,2]
[384842165,1757585446345,-442.42,0.00013972,2]
[384842166,1757585446354,-480.0,0.00013972,2]
[384842167,1757585446363,-521.3839302,0.00013972,2]
[384842168,1757585446371,-480.0,0.00013972,2]
[384842169,1757585446380,-302.0,0.00013972,2]
[384842170,1757585446389,-387.74450731,0.00013972,2]
[384842171,1757585446399,-480.0,0.00013972,2]
[384842172,1757585446409,-480.0,0.00013972,2]
[384842173,1757585446418,-343.41,0.00013972,2]
[384842174,1757585446427,-401.64618975,0.00013972,2]
[384842175,1757585446436,-480.0,0.00013972,2]
[384842176,1757585446445,-480.0,0.00013972,2]
[384842177,1757585446454,-480.0,0.00013972,2]
[384842178,1757585446463,-480.0,0.00013972,2]
[384842179,1757585446473,-480.0,0.00013972,2]
[384842180,1757585446482,-480.0,0.00013972,2]
[384842181,1757585446491,-341.46,0.00013972,2]
[384842182,1757585446500,-480.0,0.00013972,2]
[384842183,1757585446509,-245.80028401,0.00013972,2]
[384842184,1757585446518,-480.0,0.00013972,2]
[384842185,1757585446527,-480.0,0.00013972,2]
[384842186,1757585446536,-480.0,0.00013972,2]
[384842187,1757585446545,-480.0,0.00013972,2]
[384842188,1757585446554,-1974.73,0.00013972,2]
[384842189,1757585446564,-480.0,0.00013972,2]
[384842190,1757585446573,-480.0,0.00013972,2]
[384842191,1757585446582,-480.0,0.00013972,2]
[384842192,1757585446591,-480.0,0.00013972,2]
[384842193,1757585446600,-480.0,0.00013972,2]
[384842194,1757585446609,-480.0,0.00013972,2]
[384842195,1757585446618,-480.0,0.00013972,2]
[384842196,1757585446627,-480.0,0.00013972,2]
[384842197,1757585446636,-480.0,0.00013972,2]
[384842198,1757585446645,-480.0,0.00013972,2]
[384842199,1757585446659,-560.18008552,0.00013972,2]
[384842200,1757585446668,-480.0,0.00013972,2]
[384842201,1757585446677,-480.0,0.00013972,2]
[384842202,1757585446686,-480.0,0.00013972,2]
[384842203,1757585446696,-480.0,0.00013972,2]
[384842204,1757585446705,-480.0,0.00013972,2]
[384842205,1757585446714,-480.0,0.00013972,2]
[384842206,1757585446724,-480.0,0.00013972,2]
[384842207,1757585446734,-480.0,0.00013972,2]
[384842208,1757585446744,-480.0,0.00013972,2]
[384842209,1757585446753,-237.17,0.00013972,2]
[384842210,1757585446762,-480.0,0.00013972,2]
[384842211,1757585446771,-480.0,0.00013972,2]
[384842212,1757585446780,-480.0,0.00013972,2]
[384842213,1757585446790,-480.0,0.00013972,2]
[384842214,1757585446800,-480.0,0.00013972,2]
[384842215,1757585446809,-480.0,0.00013972,2]
[384842216,1757585446818,-480.0,0.00013972,2]
[384842217,1757585446827,-480.0,0.00013972,2]
[384842218,1757585446836,-480.0,0.00013972,2]
[384842219,1757585446846,-480.0,0.00013972,2]
[384842220,1757585446855,-480.0,0.00013972,2]
[384842221,1757585446864,-480.0,0.00013972,2]
[384842222,1757585446873,-480.0,0.00013972,2]
[384842223,1757585446881,-519.40477466,0.00013972,2]
[384842224,1757585446890,-480.0,0.00013972,2]
[384842225,1757585446900,-480.0,0.00013972,2]
[384842226,1757585446909,-525.5445164,0.00013972,2]
[384842227,1757585446918,-480.0,0.00013972,2]
[384842228,1757585446927,-480.0,0.00013972,2]
[384842229,1757585446935,-480.0,0.00013972,2]
[384842230,1757585446944,-440.83546616,0.00013972,2]
[384842231,1757585446954,-480.0,0.00013972,2]
[384842232,1757585446963,-480.0,0.00013972,2]
[384842233,1757585446971,-480.0,0.00013972,2]
[384842234,1757585446980,-480.0,0.00013972,2]
[384842235,1757585446991,-480.0,0.00013972,2]
[384842236,1757585447000,-480.0,0.00013972,2]
[384842237,1757585447010,-480.0,0.00013972,2]
[384842238,1757585447019,-480.0,0.00013972,2]
[384842239,1757585447028,-480.0,0.00013972,2]
[384842240,1757585447037,-480.0,0.00013972,2]
[384842241,1757585447046,-528.65136191,0.00013999,2]
[384842242,1757585447156,-480.0,0.00013999,2]
[384842243,1757585447166,-480.0,0.00013999,2]
[384842244,1757585447175,-480.0,0.00013999,2]
[384842245,1757585447184,-480.0,0.00013999,2]
[384842246,1757585447194,-650.55,0.00013999,2]
[384842247,1757585447203,-250.12,0.00013999,2]
[384842248,1757585447212,-480.0,0.00013999,2]
[384842249,1757585447221,-500.0,0.0001406,2]
[384842250,1757585447230,-500.0,0.00014072,2]
[384842251,1757585447240,-458.97,0.00014245,2]
[384842252,1757585447249,-480.0,0.00014245,2]
[384842253,1757585447258,-495.44,0.00014246,2]
[384842254,1757585447267,-480.0,0.00014246,2]
[384842255,1757585447276,-217.39,0.00014246,2]
[384842256,1757585447285,-566.69,0.00014246,2]
[384842257,1757585447294,-480.0,0.00014246,2]
[384842258,1757585447303,-480.0,0.00014246,2]
[384842259,1757585447312,-480.0,0.00014246,2]
[384842260,1757585447321,-480.0,0.00014246,2]
[384842261,1757585447330,-258.66,0.00014246,2]
[384842262,1757585447339,-480.0,0.00014246,2]
[384842263,1757585447348,-1974.73,0.00014246,2]
[384842265,1757585447358,-276.08,0.00014246,2]
[384842267,1757585447367,-480.0,0.00014246,2]
[384842269,1757585447376,-480.0,0.00014246,2]
[384842270,1757585447386,-480.0,0.00014246,2]
[384842271,1757585447398,-480.0,0.00014246,2]
[384842272,1757585447407,-480.0,0.00014246,2]
[384842273,1757585447417,-480.0,0.00014246,2]
[384842274,1757585447426,-295.06138499,0.00014246,2]
[384842275,1757585447435,-616.74071917,0.00014246,2]
[384842276,1757585447444,-487.93175676,0.00014246,2]
[384842278,1757585447453,-480.0,0.00014246,2]
[384842279,1757585447462,-480.0,0.00014246,2]
[384842280,1757585447471,-480.0,0.00014246,2]
[384842281,1757585447480,-480.0,0.00014246,2]
[384842282,1757585447490,-480.0,0.00014246,2]
[384842283,1757585447499,-480.0,0.00014246,2]
[384842284,1757585447508,-480.0,0.00014246,2]
[384842285,1757585447518,-480.0,0.00014273,2]
[384842287,1757585447527,-480.0,0.00014273,2]
[384842288,1757585447536,-480.0,0.00014273,2]
[384842289,1757585447546,-650.55,0.00014273,2]
[384842290,1757585447555,-480.0,0.00014273,2]
[384842291,1757585447565,-500.0,0.00014307,2]
[384842292,1757585447574,-500.0,0.00014307,2]
[384842293,1757585447583,-530.95967032,0.00014317,2]
[384842294,1757585447592,-160.0,0.00014317,2]
[384842295,1757585447601,-417.15472785,0.00014317,2]
[384842296,1757585447610,-846.96613202,0.00014317,2]
[384842297,1757585447620,-233.10680167,0.00014317,2]
[384842298,1757585447630,-217.69300629,0.00014317,2]
[384842299,1757585447639,-160.0,0.00014317,2]
[384842300,1757585447648,-369.76476321,0.00014477,2]
[384842301,1757585447657,-500.0,0.00014493,2]
[384842302,1757585447665,-480.0,0.00014519,2]
[384842303,1757585447675,-495.44,0.0001452,2]
[384842304,1757585447684,-178.29,0.0001452,2]
[384842305,1757585447694,-459.54,0.0001452,2]
[384842306,1757585447703,-480.0,0.0001452,2]
[384842307,1757585447712,-480.0,0.0001452,2]
[384842308,1757585447722,-1974.73,0.0001452,2]
[384842309,1757585447731,-480.0,0.0001452,2]
[384842310,1757585447740,-480.0,0.0001452,2]
[384842311,1757585447750,-543.97,0.0001452,2]
[384842312,1757585447759,-480.0,0.0001452,2]
[384842313,1757585447769,-480.0,0.0001452,2]
[384842314,1757585447778,-480.0,0.00014547,2]
[384842315,1757585447787,-480.0,0.00014547,2]
[384842316,1757585447797,-480.0,0.00014547,2]
[384842317,1757585447806,-650.55,0.00014547,2]
[384842318,1757585447816,-160.87432306,0.00014608,2]
[384842319,1757585447825,-1000.0,0.0001462,2]
[384842320,1757585447835,-75719.58654526,0.00014694,2]
[384842321,1757585447844,-480.0,0.00014793,2]
[384842322,1757585447853,-495.44,0.00014794,2]
[384842323,1757585447863,-174.89,0.00014794,2]
[384842324,1757585447872,-165.98136549,0.00014794,2]
[384842325,1757585447882,-1974.73,0.00014794,2]
[384842326,1757585447892,-526.32,0.00014794,2]
[384842327,1757585447901,-480.0,0.00014794,2]
[384842328,1757585447911,-480.0,0.00014794,2]
[384842329,1757585447920,-259.14,0.00014794,2]
[384842330,1757585447931,-186.19083374,0.00014821,2]
[384842331,1757585447940,-480.0,0.00014821,2]
[384842332,1757585447949,-480.0,0.00014821,2]
[384842333,1757585447959,-650.55,0.00014821,2]
[384842334,1757585447968,-503.49835,0.00014855,2]
[384842335,1757585447977,-324.28321046,0.00014855,2]
[384842336,1757585447987,-160.0,0.00015,2]
[384842337,1757585447996,-197.95,0.00015067,2]
[384842338,1757585448007,-495.44,0.00015068,2]
[384842339,1757585448016,-1974.73,0.00015068,2]
[384842340,1757585448025,-480.0,0.00015068,2]
[384842341,1757585448035,-480.0,0.00015068,2]
[384842342,1757585448044,-358.69101064,0.00015095,2]
[384842343,1757585448053,-509.87,0.00015095,2]
[384842344,1757585448063,-650.55,0.00015095,2]
[384842345,1757585448072,-1500.0,0.00015168,2]
[384842346,1757585448081,-670.99734358,0.00015324,2]
[384842347,1757585448091,-495.44,0.00015342,2]
[384842348,1757585448100,-1974.73,0.00015342,2]
[384842349,1757585448109,-480.0,0.00015342,2]
[384842350,1757585448119,-480.0,0.00015342,2]
[384842351,1757585448129,-650.55,0.00015369,2]
[384842352,1757585448138,-643.65816926,0.00015583,2]
[384842353,1757585448147,-495.44,0.00015616,2]
[384842354,1757585448156,-1974.73,0.00015616,2]
[384842355,1757585448166,-536.32,0.00015616,2]
[384842356,1757585448176,-480.0,0.00015616,2]
[384842357,1757585448185,-650.55,0.00015643,2]
[384842358,1757585448194,-2000.0,0.00015716,2]
[384842359,1757585448204,-495.44,0.0001589,2]
[384842360,1757585448213,-1974.73,0.0001589,2]
[384842361,1757585448222,-480.0,0.0001589,2]
[384842362,1757585448235,-650.55,0.00015917,2]
[384842363,1757585448248,-976.0,0.00016117,2]
[384842364,1757585448260,-17438.606505,0.00016162,2]
[384842365,1757585448272,-495.44,0.00016164,2]
[384842366,1757585448284,-1974.73,0.00016164,2]
[384842367,1757585448294,-480.0,0.00016164,2]
[384842368,1757585448305,-650.55,0.00016191,2]
[384842369,1757585448316,-757.05422029,0.00016264,2]
[384842370,1757585448327,-495.44,0.00016438,2]
[384842371,1757585448339,-1974.73,0.00016438,2]
[384842372,1757585448350,-480.0,0.00016438,2]
[384842373,1757585448363,-650.55,0.00016465,2]
[384842374,1757585448375,-495.44,0.00016712,2]
[384842375,1757585448386,-1974.73,0.00016712,2]
[384842376,1757585448398,-480.0,0.00016712,2]
[384842377,1757585448411,-650.55,0.00016739,2]
[384842378,1757585448426,-495.44,0.00016986,2]
[384842379,1757585448438,-1974.73,0.00016986,2]
[384842380,1757585448448,-480.0,0.00016986,2]
[384842381,1757585448460,-650.55,0.00017013,2]
[384842382,1757585448471,-495.44,0.0001726,2]
[384842383,1757585448481,-1974.73,0.0001726,2]
[384842384,1757585448492,-480.0,0.0001726,2]
[384842385,1757585448504,-650.55,0.00017287,2]
[384842386,1757585448516,-495.44,0.00017534,2]
[384842387,1757585448528,-1974.73,0.00017534,2]
[384842388,1757585448538,-480.0,0.00017534,2]
[384842389,1757585448550,-650.55,0.00017561,2]
[384842390,1757585448560,-495.44,0.00017808,2]
[384842391,1757585448572,-1974.73,0.00017808,2]
[384842392,1757585448582,-480.0,0.00017808,2]
[384842393,1757585448594,-168.0,0.00017814,2]
[384842394,1757585448604,-650.55,0.00017835,2]
[384842395,1757585448616,-495.44,0.00018082,2]
[384842396,1757585448628,-1974.73,0.00018082,2]
[384842397,1757585448639,-480.0,0.00018082,2]
[384842398,1757585448652,-650.55,0.00018109,2]
[384842399,1757585448663,-178.85346485,0.00018199,2]
[384842400,1757585448675,-495.44,0.00018356,2]
[384842401,1757585448687,-1974.73,0.00018356,2]
[384842402,1757585448699,-480.0,0.00018356,2]
[384842403,1757585448712,-650.55,0.00018383,2]
[384842404,1757585448723,-157.0,0.00018588,2]
[384842405,1757585448736,-157.0,0.00018588,2]
[384842406,1757585448746,-187.15576169,0.00018588,2]
[384842407,1757585448756,-157.0,0.00018588,2]
[384842408,1757585448767,-500.0,0.00018588,2]
[384842409,1757585448778,-157.0,0.00018588,2]
[384842410,1757585448791,-157.0,0.00018588,2]
[384842411,1757585448803,-241.98,0.00018588,2]
[384842412,1757585448815,-168.0,0.00018592,2]
[384842413,1757585448826,-495.44,0.0001863,2]
[384842414,1757585448836,-1112.051,0.0001863,2]
[384842415,1757585448847,-1974.73,0.0001863,2]
[384842416,1757585448858,-296.83776819,0.0001863,2]
[384842417,1757585448870,-650.55,0.00018657,2]
[384842418,1757585448883,-157.0,0.00018862,2]
[384842419,1757585448895,-157.0,0.00018862,2]
[384842420,1757585448907,-500.0,0.00018862,2]
[384842421,1757585448918,-157.0,0.00018862,2]
[384842422,1757585448929,-168.0,0.00018903,2]
[384842423,1757585448940,-495.44,0.00018904,2]
[384842424,1757585448950,-1974.73,0.00018904,2]
[384842425,1757585448962,-650.55,0.00018931,2]
[384842426,1757585448973,-157.0,0.00019136,2]
[384842427,1757585448985,-186.0,0.00019136,2]
[384842428,1757585448996,-616.0,0.00019136,2]
[384842429,1757585449007,-186.0,0.00019136,2]
[384842430,1757585449019,-495.44,0.00019178,2]
[384842431,1757585449031,-1974.73,0.00019178,2]
[384842432,1757585449042,-650.55,0.00019205,2]
[384842433,1757585449053,-157.0,0.0001941,2]
[384842434,1757585449064,-495.44,0.00019452,2]
[384842435,1757585449076,-1974.73,0.00019452,2]
[384842436,1757585449087,-650.55,0.00019479,2]
[384842437,1757585449098,-642.04557026,0.00019598,2]
[384842438,1757585449110,-209.91168149,0.00019684,2]
[384842439,1757585449121,-495.44,0.00019726,2]
[384842440,1757585449132,-1974.73,0.00019726,2]
[384842441,1757585449143,-650.55,0.00019753,2]
[384842442,1757585449154,-480.0,0.00019899,2]
[384842443,1757585449165,-787.58559396,0.000199,2]
[384842444,1757585449176,-1984.56538095,0.000199,2]
[384842445,1757585449187,-500.0,0.000199,2]
[384842446,1757585449198,-12613.54275087,0.000199,2]
[384842447,1757585449209,-500.0,0.000199,2]
[384842448,1757585449220,-3140.3709653,0.00019933,2]
[384842449,1757585449231,-9513.22518597,0.00019998,2]
[384842450,1757585449242,-212.0,0.00019998,2]
[384842451,1757585449253,-200.0,0.0002,2]
[384842452,1757585449264,-1191.20722146,0.0002,2]
[384842453,1757585449275,-14455.39100615,0.0002,2]
[384842454,1757585449286,-365.43295588,0.0002,2]
[384842455,1757585449297,-1201.59213517,0.0002,2]
[384842456,1757585449308,-560.0,0.0002,2]
[384842457,1757585449318,-146574.0,0.0002,7]
[384842458,1757585449329,-161.0,0.0002,4]
[384842459,1757585449340,-205.01,0.0002,2]
[384842460,1757585449351,-3695.0,0.0002,2]
[384842461,1757585449361,-1000.0,0.0002,20]
[384842462,1757585449372,-6405.0,0.0002,5]
[384842463,1757585449383,-530.95967032,0.0002,7]
[384842464,1757585449394,-495.57628297,0.0002,2]
[384842465,1757585449405,-417.15472785,0.0002,7]